fUST/lending_fUST_20240114
["ID","MTS","AMOUNT","RATE_DAILY","PERIOD"]
[311537208,1705199446341,-410.53974763,0.00030136,2]
[311537209,1705199446355,-500.0,0.00030136,2]
[311537210,1705199446368,-515.31325227,0.00030136,2]
[311537211,1705199446381,-501.75935001,0.00030136,2]
[311537212,1705199446394,-509.70718093,0.00030136,2]
[311537213,1705199446407,-500.0,0.00030136,2]
[311537214,1705199446419,-512.73212551,0.00030136,2]
[311537215,1705199446431,-500.0,0.00030136,2]
[311537216,1705199446442,-504.85185307,0.00030136,2]
[311537217,1705199446454,-505.55228209,0.00030136,2]
[311537218,1705199446466,-500.93686172,0.00030136,2]
[311537219,1705199446477,-287.40897555,0.00030136,2]
[311537220,1705199446489,-503.12196146,0.00030136,2]
[311537221,1705199446501,-500.0,0.00030136,2]
[311537222,1705199446513,-518.62248158,0.00030136,2]
[311537223,1705199446524,-500.0,0.00030136,2]
[311537224,1705199446535,-500.0,0.00030136,2]
[311537225,1705199446547,-568.8683551,0.00030136,2]
[311537226,1705199446559,-500.0,0.00030136,2]
[311537227,1705199446569,-500.0,0.00030136,2]
[311537228,1705199446579,-500.0,0.00030136,2]
[311537229,1705199446593,-500.0,0.00030136,2]
[311537230,1705199446604,-500.0,0.00030136,2]
[311537231,1705199446615,-500.0,0.00030136,2]
[311537232,1705199446626,-1000.0,0.00030136,2]
[311537233,1705199446636,-500.0,0.00030136,2]
[311537234,1705199446647,-502.90104479,0.00030136,2]
[311537235,1705199446658,-509.39793533,0.00030136,2]
[311537236,1705199446672,-556.39010233,0.00030136,2]
[311537237,1705199446682,-155.14192239,0.00030136,2]
[311537238,1705199446693,-500.0,0.00030136,2]
[311537239,1705199446705,-500.0,0.00030136,2]
[311537240,1705199446717,-502.96832029,0.00030136,2]
[311537241,1705199446727,-500.0,0.00030136,2]
[311537242,1705199446737,-500.0,0.00030136,2]
[311537243,1705199446747,-500.0,0.00030136,2]
[311537244,1705199446757,-500.0,0.00030136,2]
[311537245,1705199446770,-500.0,0.00030136,2]
[311537246,1705199446782,-501.51539704,0.00030136,2]
[311537247,1705199446792,-505.56549688,0.00030136,2]
[311537248,1705199446804,-500.0,0.00030136,2]
[311537249,1705199446815,-619.53742458,0.00030136,2]
[311537250,1705199446825,-500.0,0.00030136,2]
[311537251,1705199446836,-500.0,0.00030136,2]
[311537252,1705199446846,-500.0,0.00030136,2]
[311537253,1705199446858,-500.0,0.00030136,2]
[311537254,1705199446869,-366.94048723,0.00030136,2]
[311537255,1705199446880,-502.36498599,0.00030136,2]
[311537256,1705199446891,-500.0,0.00030136,2]
[311537257,1705199446903,-500.0,0.00030136,2]
[311537258,1705199446914,-500.0,0.00030136,2]
[311537259,1705199446926,-500.0,0.00030136,2]
[311537260,1705199446937,-503.3873243,0.00030136,2]
[311537261,1705199446948,-504.04864165,0.00030136,2]
[311537262,1705199446959,-515.38428563,0.00030136,2]
[311537263,1705199446971,-507.64365218,0.00030136,2]
[311537264,1705199446982,-500.0,0.00030136,2]
[311537265,1705199446992,-500.0,0.00030136,2]
[311537266,1705199447005,-500.0,0.00030136,2]
[311537267,1705199447015,-500.0,0.00030136,2]
[311537268,1705199447024,-6295.24,0.00030136,2]
[311537269,1705199447034,-501.80095131,0.00030136,2]
[311537270,1705199447046,-502.11758507,0.00030136,2]
[311537271,1705199447056,-500.0,0.00030136,2]
[311537272,1705199447068,-501.03600058,0.00030136,2]
[311537273,1705199447079,-500.0,0.00030136,2]
[311537274,1705199447090,-500.0,0.00030136,2]
[311537275,1705199447102,-500.0,0.00030136,2]
[311537276,1705199447112,-505.41689106,0.00030136,2]
[311537277,1705199447122,-1619.0,0.00030136,2]
[311537278,1705199447134,-602.72039454,0.00030136,2]
[311537279,1705199447144,-503.01697234,0.00030136,2]
[311537280,1705199447154,-500.0,0.00030136,2]
[311537281,1705199447163,-500.0,0.00030136,2]
[311537282,1705199447174,-500.0,0.00030136,2]
[311537283,1705199447183,-500.0,0.00030136,2]
[311537284,1705199447194,-500.0,0.00030136,2]
[311537285,1705199447204,-755.56,0.00030136,2]
[311537286,1705199447218,-517.08129978,0.00030136,2]
[311537287,1705199447228,-1261.05,0.00030136,2]
[311537288,1705199447238,-502.28719276,0.00030136,2]
[311537289,1705199447249,-503.76283896,0.00030136,2]
[311537290,1705199447260,-500.0,0.00030136,2]
[311537291,1705199447271,-500.0,0.00030136,2]
[311537292,1705199447281,-500.0,0.00030136,2]
[311537293,1705199447291,-501.25426022,0.00030136,2]
[311537294,1705199447302,-500.0,0.00030136,2]
[311537295,1705199447312,-310.91729699,0.00030136,2]
[311537296,1705199447322,-500.0,0.00030136,2]
[311537297,1705199447333,-500.0,0.00030136,2]
[311537298,1705199447343,-500.96510976,0.00030136,2]
[311537299,1705199447354,-500.0,0.00030136,2]
[311537300,1705199447364,-500.0,0.00030136,2]
[311537301,1705199447375,-506.61890384,0.00030136,2]
[311537302,1705199447386,-500.0,0.00030136,2]
[311537303,1705199447396,-500.0,0.00030136,2]
[311537304,1705199447407,-500.0,0.00030136,2]
[311537305,1705199447418,-500.0,0.00030136,2]
[311537306,1705199447428,-503.75141497,0.00030136,2]
[311537307,1705199447439,-500.0,0.00030136,2]
[311537308,1705199447450,-500.0,0.00030136,2]
[311537309,1705199447460,-500.0,0.00030136,2]
[311537310,1705199447470,-773.04,0.00030136,2]
[311537311,1705199447481,-500.0,0.00030136,2]
[311537312,1705199447492,-500.0,0.00030136,2]
[311537313,1705199447502,-500.0,0.00030136,2]
[311537314,1705199447513,-500.0,0.00030136,2]
[311537315,1705199447523,-500.0,0.00030136,2]
[311537316,1705199447534,-4111.66,0.00030136,2]
[311537317,1705199447544,-500.0,0.00030136,2]
[311537318,1705199447662,-500.0,0.00030136,2]
[311537319,1705199447675,-500.0,0.00030136,2]
[311537320,1705199447685,-201.13046414,0.00030136,2]
[311537321,1705199447695,-489.49394302,0.00030136,2]
[311537322,1705199447704,-506.60600586,0.00030136,2]
[311537323,1705199447714,-500.0,0.00030136,2]
[311537324,1705199447723,-500.0,0.00030136,2]
[311537325,1705199447732,-502.20511041,0.00030136,2]
[311537326,1705199447742,-500.0,0.00030136,2]
[311537327,1705199447751,-500.0,0.00030136,2]
[311537328,1705199447760,-500.0,0.00030136,2]
[311537329,1705199447770,-500.0,0.00030136,2]
[311537330,1705199447778,-500.0,0.00030136,2]
[311537331,1705199447788,-500.0,0.00030136,2]
[311537332,1705199447797,-500.0,0.00030136,2]
[311537333,1705199447806,-500.0,0.00030136,2]
[311537334,1705199447816,-1227.62,0.00030136,2]
[311537335,1705199447825,-625.94,0.00030136,2]
[311537336,1705199447834,-500.0,0.00030136,2]
[311537337,1705199447843,-500.0,0.00030136,2]
[311537338,1705199447852,-500.0,0.00030136,2]
[311537339,1705199447862,-500.0,0.00030136,2]
[311537340,1705199447871,-552.99822751,0.00030136,2]
[311537341,1705199447881,-501.62544627,0.00030136,2]
[311537342,1705199447890,-547.09,0.00030136,2]
[311537343,1705199447900,-471.10965015,0.00030136,2]
[311537344,1705199447909,-500.0,0.00030136,2]
[311537345,1705199447918,-500.0,0.00030136,2]
[311537346,1705199447927,-154.6228574,0.00030137,2]
[311537347,1705199447938,-153.1880119,0.00030137,2]
[311537348,1705199447947,-153.2699126,0.00030137,2]
[311537349,1705199447956,-156.4476198,0.00030137,2]
[311537350,1705199447966,-154.5972832,0.00030137,2]
[311537351,1705199447976,-154.1994419,0.00030137,2]
[311537352,1705199447985,-655.30601003,0.00030137,2]
[311537353,1705199447996,-201.390102,0.00030237,2]
[311537354,1705199448006,-200.031346,0.00030237,2]
[311537355,1705199448015,-167.99645,0.00030237,2]
[311537356,1705199448024,-500.0,0.00030409,2]
[311537357,1705199448034,-500.0,0.00030409,2]
[311537358,1705199448044,-500.0,0.00030409,2]
[311537359,1705199448054,-500.0,0.00030409,2]
[311537360,1705199448063,-502.98045114,0.00030409,2]
[311537361,1705199448073,-500.0,0.00030409,2]
[311537362,1705199448082,-501.35380754,0.00030409,2]
[311537363,1705199448091,-500.0,0.00030409,2]
[311537364,1705199448100,-505.65519792,0.00030409,2]
[311537365,1705199448110,-502.39685917,0.00030409,2]
[311537366,1705199448118,-500.0,0.00030409,2]
[311537367,1705199448127,-500.0,0.00030409,2]
[311537368,1705199448136,-500.0,0.00030409,2]
[311537369,1705199448145,-500.0,0.00030409,2]
[311537370,1705199448154,-500.0,0.00030409,2]
[311537371,1705199448164,-500.0,0.00030409,2]
[311537372,1705199448173,-500.0,0.00030409,2]
[311537373,1705199448182,-500.0,0.00030409,2]
[311537374,1705199448191,-502.51187316,0.00030409,2]
[311537375,1705199448200,-500.0,0.00030409,2]
[311537376,1705199448210,-500.0,0.00030409,2]
[311537377,1705199448218,-500.0,0.00030409,2]
[311537378,1705199448228,-501.90739506,0.00030409,2]
[311537379,1705199448237,-500.0,0.00030409,2]
[311537380,1705199448246,-500.0,0.00030409,2]
[311537381,1705199448255,-500.0,0.00030409,2]
[311537382,1705199448264,-500.0,0.00030409,2]
[311537383,1705199448273,-500.0,0.00030409,2]
[311537384,1705199448282,-500.0,0.00030409,2]
[311537385,1705199448291,-500.0,0.00030409,2]
[311537386,1705199448300,-500.0,0.00030409,2]
[311537387,1705199448309,-500.0,0.00030409,2]
[311537388,1705199448319,-500.0,0.00030409,2]
[311537389,1705199448329,-500.0,0.00030409,2]
[311537390,1705199448338,-500.0,0.00030409,2]
[311537391,1705199448347,-500.0,0.00030409,2]
[311537392,1705199448355,-500.0,0.00030409,2]
[311537393,1705199448365,-500.0,0.00030409,2]
[311537394,1705199448374,-502.22218072,0.00030409,2]
[311537395,1705199448383,-501.46630927,0.00030409,2]
[311537396,1705199448392,-253.64738023,0.00030409,2]
[311537397,1705199448402,-553.31632899,0.00030409,2]
[311537398,1705199448411,-500.0,0.00030409,2]
[311537399,1705199448420,-500.0,0.00030409,2]
[311537400,1705199448429,-509.79128618,0.00030409,2]
[311537401,1705199448438,-500.0,0.00030409,2]
[311537402,1705199448447,-500.0,0.00030409,2]
[311537403,1705199448456,-500.0,0.00030409,2]
[311537404,1705199448466,-500.4137572,0.00030409,2]
[311537405,1705199448476,-500.0,0.00030409,2]
[311537406,1705199448485,-500.0,0.00030409,2]
[311537407,1705199448494,-500.0,0.00030409,2]
[311537408,1705199448503,-500.0,0.00030409,2]
[311537409,1705199448512,-518.31642751,0.00030409,2]
[311537410,1705199448522,-502.71971081,0.00030409,2]
[311537411,1705199448532,-500.0,0.00030409,2]
[311537412,1705199448542,-500.0,0.00030409,2]
[311537413,1705199448552,-500.0,0.00030409,2]
[311537414,1705199448560,-501.63487213,0.00030409,2]
[311537415,1705199448569,-500.0,0.00030409,2]
[311537416,1705199448579,-526.63370436,0.00030409,2]
[311537417,1705199448588,-504.42543785,0.00030409,2]
[311537418,1705199448597,-505.10649631,0.00030409,2]
[311537419,1705199448606,-500.0,0.00030409,2]
[311537420,1705199448615,-500.0,0.00030409,2]
[311537421,1705199448624,-500.0,0.00030409,2]
[311537422,1705199448633,-424.08478548,0.0003041,2]
[311537423,1705199448642,-504.53261196,0.0003041,2]
[311537424,1705199448651,-500.0,0.0003041,2]
[311537425,1705199448660,-502.85831635,0.0003041,2]
[311537426,1705199448669,-500.0,0.0003041,2]
[311537427,1705199448679,-500.0,0.0003041,2]
[311537428,1705199448688,-500.0,0.0003041,2]
[311537429,1705199448697,-500.0,0.0003041,2]
[311537430,1705199448706,-393.87499347,0.0003041,2]
[311537431,1705199448716,-503.56994745,0.0003041,2]
[311537432,1705199448725,-500.0,0.0003041,2]
[311537433,1705199448734,-500.0,0.0003041,2]
[311537434,1705199448743,-500.0,0.0003041,2]
[311537435,1705199448752,-501.59793179,0.0003041,2]
[311537436,1705199448761,-504.9651415,0.0003041,2]
[311537437,1705199448770,-505.14811114,0.0003041,2]
[311537438,1705199448779,-366.37199732,0.0003041,2]
[311537439,1705199448788,-500.0,0.0003041,2]
[311537440,1705199448797,-225.42784318,0.0003041,2]
[311537441,1705199448806,-506.32141266,0.0003041,2]
[311537442,1705199448815,-501.32386826,0.0003041,2]
[311537443,1705199448824,-500.0,0.0003041,2]
[311537444,1705199448833,-500.0,0.0003041,2]
[311537445,1705199448842,-1000.0,0.0003041,2]
[311537446,1705199448851,-500.0,0.0003041,2]
[311537447,1705199448860,-500.0,0.0003041,2]
[311537448,1705199448869,-500.0,0.0003041,2]
[311537449,1705199448878,-500.0,0.0003041,2]
[311537450,1705199448887,-500.0,0.0003041,2]
[311537451,1705199448896,-500.0,0.0003041,2]
[311537452,1705199448906,-502.98322242,0.0003041,2]
[311537453,1705199448915,-509.56890864,0.0003041,2]
[311537454,1705199448923,-504.42336431,0.0003041,2]
[311537455,1705199448933,-500.0,0.0003041,2]
[311537456,1705199448942,-444.39396694,0.0003041,2]
[311537457,1705199448951,-500.0,0.0003041,2]
[311537458,1705199448960,-504.23664267,0.0003041,2]
[311537459,1705199448969,-500.0,0.0003041,2]
[311537460,1705199448979,-500.0,0.0003041,2]
[311537461,1705199448989,-504.48431866,0.0003041,2]
[311537462,1705199449002,-549.12286945,0.0003041,2]
[311537463,1705199449012,-500.0,0.0003041,2]
[311537464,1705199449022,-500.0,0.0003041,2]
[311537465,1705199449031,-500.0,0.0003041,2]
[311537466,1705199449042,-500.0,0.0003041,2]
[311537467,1705199449051,-6295.24,0.0003041,2]
[311537468,1705199449060,-500.0,0.0003041,2]
[311537469,1705199449069,-500.0,0.0003041,2]
[311537470,1705199449078,-500.0,0.0003041,2]
[311537471,1705199449087,-516.07671333,0.0003041,2]
[311537472,1705199449096,-1619.0,0.0003041,2]
[311537473,1705199449106,-504.86520712,0.0003041,2]
[311537474,1705199449116,-506.14346699,0.0003041,2]
[311537475,1705199449125,-500.09762926,0.0003041,2]
[311537476,1705199449134,-500.0,0.0003041,2]
[311537477,1705199449143,-506.14158634,0.0003041,2]
[311537478,1705199449154,-755.56,0.0003041,2]
[311537479,1705199449164,-1261.05,0.0003041,2]
[311537480,1705199449174,-503.02164422,0.0003041,2]
[311537481,1705199449184,-500.0,0.0003041,2]
[311537482,1705199449197,-500.0,0.0003041,2]
[311537483,1705199449208,-500.0,0.0003041,2]
[311537484,1705199449218,-500.0,0.0003041,2]
[311537485,1705199449227,-506.82763961,0.0003041,2]
[311537486,1705199449238,-500.0,0.0003041,2]
[311537487,1705199449247,-500.0,0.0003041,2]
[311537488,1705199449256,-500.0,0.0003041,2]
[311537489,1705199449267,-510.12544456,0.0003041,2]
[311537490,1705199449277,-544.4970078,0.0003041,2]
[311537491,1705199449288,-500.0,0.0003041,2]
[311537492,1705199449297,-505.31100691,0.0003041,2]
[311537493,1705199449307,-501.83031304,0.0003041,2]
[311537494,1705199449316,-773.04,0.0003041,2]
[311537495,1705199449325,-192.12346729,0.0003041,2]
[311537496,1705199449335,-500.0,0.0003041,2]
[311537497,1705199449344,-505.04437629,0.0003041,2]
[311537498,1705199449353,-500.0,0.0003041,2]
[311537499,1705199449362,-500.0,0.0003041,2]
[311537500,1705199449371,-4111.66,0.0003041,2]
[311537501,1705199449382,-500.0,0.0003041,2]
[311537502,1705199449392,-500.0,0.0003041,2]
[311537503,1705199449402,-507.54880534,0.0003041,2]
[311537504,1705199449412,-406.36536227,0.0003041,2]
[311537505,1705199449421,-503.43989046,0.0003041,2]
[311537506,1705199449430,-501.42415586,0.0003041,2]
[311537507,1705199449440,-500.0,0.0003041,2]
[311537508,1705199449450,-500.0,0.0003041,2]
[311537509,1705199449461,-500.0,0.0003041,2]
[311537510,1705199449470,-501.33867469,0.0003041,2]
[311537511,1705199449480,-500.0,0.0003041,2]
[311537512,1705199449489,-500.0,0.0003041,2]
[311537513,1705199449500,-505.9523721,0.0003041,2]
[311537514,1705199449509,-1227.62,0.0003041,2]
[311537515,1705199449520,-625.94,0.0003041,2]
[311537516,1705199449529,-512.59062241,0.0003041,2]
[311537517,1705199449538,-500.0,0.0003041,2]
[311537518,1705199449547,-500.0,0.0003041,2]
[311537519,1705199449556,-500.0,0.0003041,2]
[311537520,1705199449565,-547.09,0.0003041,2]
[311537521,1705199449574,-500.0,0.0003041,2]
[311537522,1705199449583,-505.04112074,0.0003041,2]
[311537523,1705199449592,-35653.01739407,0.00030584,3]
[311537524,1705199449602,-2000.0,0.000306,2]
[311537525,1705199449611,-2000.0,0.0003061,2]
[311537526,1705199449620,-2000.0,0.0003062,2]
[311537527,1705199449629,-2000.0,0.0003063,2]
[311537528,1705199449638,-831.205582,0.0003063,2]
[311537529,1705199449647,-831.205582,0.0003063,2]
[311537530,1705199449657,-2000.0,0.0003064,2]
[311537531,1705199449666,-2000.0,0.0003065,2]
[311537532,1705199449675,-151.61,0.0003066,30]
[311537533,1705199449684,-2000.0,0.0003066,2]
[311537534,1705199449693,-150.5,0.0003067,30]
[311537535,1705199449703,-2646.971278,0.0003067,2]
[311537536,1705199449713,-150.5,0.0003068,30]
[311537537,1705199449722,-15932.91159046,0.00030682,4]
[311537538,1705199449731,-155.4366454,0.00030682,4]
[311537539,1705199449740,-155.26235345,0.00030682,4]
[311537540,1705199449749,-589.01528131,0.00030682,4]
[311537541,1705199449758,-247.00167655,0.00030682,4]
[311537542,1705199449767,-155.08511295,0.00030682,4]
[311537543,1705199449776,-675.50518803,0.00030682,4]
[311537544,1705199449785,-9712.46468948,0.00030682,4]
[311537545,1705199449795,-7001.88400613,0.00030682,4]
[311537546,1705199449804,-531.44538508,0.00030683,2]
[311537547,1705199449815,-500.0,0.00030683,2]
[311537548,1705199449825,-500.0,0.00030683,2]
[311537549,1705199449834,-504.05857982,0.00030683,2]
[311537550,1705199449844,-505.05587139,0.00030683,2]
[311537551,1705199449853,-503.23287154,0.00030683,2]
[311537552,1705199449862,-500.0,0.00030683,2]
[311537553,1705199449871,-503.10395864,0.00030683,2]
[311537554,1705199449880,-194.96392291,0.00030683,2]
[311537555,1705199449889,-500.0,0.00030683,2]
[311537556,1705199449898,-504.14799284,0.00030683,2]
[311537557,1705199449907,-500.0,0.00030683,2]
[311537558,1705199449916,-502.62560144,0.00030683,2]
[311537559,1705199449926,-564.81559525,0.00030683,2]
[311537560,1705199449935,-500.0,0.00030683,2]
[311537561,1705199449945,-500.0,0.00030683,2]
[311537562,1705199449954,-500.0,0.00030683,2]
[311537563,1705199449965,-503.3382649,0.00030683,2]
[311537564,1705199449974,-500.0,0.00030683,2]
[311537565,1705199449984,-500.0,0.00030683,2]
[311537566,1705199449993,-500.0,0.00030683,2]
[311537567,1705199450002,-500.0,0.00030683,2]
[311537568,1705199450011,-500.0,0.00030683,2]
[311537569,1705199450020,-501.57429679,0.00030683,2]
[311537570,1705199450029,-500.0,0.00030683,2]
[311537571,1705199450039,-505.87450352,0.00030683,2]
[311537572,1705199450048,-500.0,0.00030683,2]
[311537573,1705199450058,-500.0,0.00030683,2]
[311537574,1705199450067,-500.0,0.00030683,2]
[311537575,1705199450076,-500.0,0.00030683,2]
[311537576,1705199450085,-500.0,0.00030683,2]
[311537577,1705199450094,-500.0,0.00030683,2]
[311537578,1705199450103,-500.0,0.00030683,2]
[311537579,1705199450197,-501.7644849,0.00030683,2]
[311537580,1705199450207,-500.0,0.00030683,2]
[311537581,1705199450219,-500.0,0.00030683,2]
[311537582,1705199450229,-500.0,0.00030683,2]
[311537583,1705199450239,-500.0,0.00030683,2]
[311537584,1705199450247,-500.0,0.00030683,2]
[311537585,1705199450256,-500.0,0.00030683,2]
[311537586,1705199450266,-500.0,0.00030683,2]
[311537587,1705199450275,-534.24860019,0.00030683,2]
[311537588,1705199450284,-500.0,0.00030683,2]
[311537589,1705199450293,-500.0,0.00030683,2]
[311537590,1705199450303,-500.0,0.00030683,2]
[311537591,1705199450312,-500.0,0.00030683,2]
[311537592,1705199450322,-500.0,0.00030684,2]
[311537593,1705199450331,-282.77222254,0.00030684,3]
[311537594,1705199450340,-155.01550155,0.00030684,2]
[311537595,1705199450350,-336.82287767,0.00030684,2]
[311537596,1705199450359,-500.0,0.00030684,2]
[311537597,1705199450368,-501.81667094,0.00030684,2]
[311537598,1705199450378,-503.02436514,0.00030684,2]
[311537599,1705199450387,-459.72204338,0.00030684,2]
[311537600,1705199450397,-502.74171708,0.00030684,2]
[311537601,1705199450406,-500.0,0.00030684,2]
[311537602,1705199450415,-500.0,0.00030684,2]
[311537603,1705199450424,-425.73937645,0.00030684,2]
[311537604,1705199450434,-736.80263219,0.00030684,2]
[311537605,1705199450443,-223.30147502,0.00030684,2]
[311537606,1705199450453,-502.95437604,0.00030684,2]
[311537607,1705199450463,-500.0,0.00030684,2]
[311537608,1705199450472,-455.3844703,0.00030684,2]
[311537609,1705199450481,-532.55426999,0.00030684,2]
[311537610,1705199450491,-500.0,0.00030684,2]
[311537611,1705199450500,-500.0,0.00030684,2]
[311537612,1705199450509,-504.80459169,0.00030684,2]
[311537613,1705199450518,-500.0,0.00030684,2]
[311537614,1705199450527,-500.0,0.00030684,2]
[311537615,1705199450537,-638.81029631,0.00030684,2]
[311537616,1705199450547,-590.72678018,0.00030684,2]
[311537617,1705199450556,-500.0,0.00030684,2]
[311537618,1705199450565,-500.0,0.00030684,2]
[311537619,1705199450575,-6295.24,0.00030684,2]
[311537620,1705199450584,-500.0,0.00030684,2]
[311537621,1705199450593,-500.0,0.00030684,2]
[311537622,1705199450603,-569.7221563,0.00030684,2]
[311537623,1705199450612,-1619.0,0.00030684,2]
[311537624,1705199450621,-535.43465821,0.00030684,2]
[311537625,1705199450630,-755.56,0.00030684,2]
[311537626,1705199450639,-1261.05,0.00030684,2]
[311537627,1705199450649,-500.0,0.00030684,2]
[311537628,1705199450658,-500.0,0.00030684,2]
[311537629,1705199450668,-505.491975,0.00030684,2]
[311537630,1705199450677,-500.0,0.00030684,2]
[311537631,1705199450686,-500.0,0.00030684,2]
[311537632,1705199450695,-500.0,0.00030684,2]
[311537633,1705199450704,-500.0,0.00030684,2]
[311537634,1705199450716,-500.0,0.00030684,2]
[311537635,1705199450725,-773.04,0.00030684,2]
[311537636,1705199450735,-500.0,0.00030684,2]
[311537637,1705199450744,-500.0,0.00030684,2]
[311537638,1705199450753,-247.8208415,0.00030684,2]
[311537639,1705199450762,-4111.66,0.00030684,2]
[311537640,1705199450771,-500.0,0.00030684,2]
[311537641,1705199450780,-500.0,0.00030684,2]
[311537642,1705199450789,-505.56719072,0.00030684,2]
[311537643,1705199450798,-500.0,0.00030684,2]
[311537644,1705199450808,-504.64717132,0.00030684,2]
[311537645,1705199450817,-500.0,0.00030684,2]
[311537646,1705199450826,-291.18457827,0.00030684,2]
[311537740,1705199981356,150.79641084,0.0002776,60]
[311537801,1705200631943,-155.20435514,0.0002776,2]
[311537803,1705200631952,-155.35086125,0.0002776,2]
[311537805,1705200631962,-155.02790502,0.00027858,4]
[311537807,1705200631971,-155.02790502,0.00027859,2]
[311537809,1705200631981,-483.61678716,0.00027999,2]
[311537811,1705200631993,-1254.70316805,0.00027999,2]
[311537813,1705200632002,-2000.0,0.00028,2]
[311537815,1705200632011,-2192.07848869,0.00028354,2]
[311537817,1705200632020,-5000.0,0.00028354,5]
[311537818,1705200632029,-271.3486801,0.00028354,2]
[311537928,1705200639529,-217.03286783,0.00028354,2]
[311537930,1705200639540,-1313.0,0.00029,2]
[311537932,1705200639549,-620.23760853,0.00029275,2]
[311537933,1705200639558,-182.33533974,0.00029348,2]
[311537935,1705200639567,-400.04334525,0.0003,7]
[311537958,1705200641235,-1000.78740864,0.0003,7]
[311538096,1705201838255,-155.02790502,0.00027082,4]
[311538098,1705201838265,-260.35384667,0.00027083,7]
[311538100,1705201838274,-824.90506797,0.00027119,2]
[311538102,1705201838283,-1115.64530026,0.00027119,2]
[311538104,1705201838292,-156.52857959,0.00028354,2]
[311538106,1705201838302,-310.04650698,0.00028354,2]
[311538108,1705201838310,-314.8718134,0.00028362,2]
[311538110,1705201838319,-657.62354661,0.00028373,2]
[311538112,1705201838328,-170.81326,0.00028822,2]
[311538114,1705201838337,-157.59641185,0.00029023,2]
[311538116,1705201838347,-160.71548689,0.00029348,2]
[311538118,1705201838356,-2714.18236573,0.00029348,2]
[311538120,1705201838364,-153.0,0.00029378,2]
[311538122,1705201838374,-153.7958223,0.00029378,2]
[311538124,1705201838383,-153.0,0.00029378,2]
[311538125,1705201838392,-153.0,0.00029378,2]
[311538126,1705201838403,-153.0,0.00029378,2]
[311538127,1705201838412,-153.0,0.00029378,2]
[311538129,1705201838423,-153.0,0.00029378,2]
[311538130,1705201838432,-153.0,0.00029378,2]
[311538131,1705201838441,-153.0,0.00029378,2]
[311538133,1705201838450,-153.2911349,0.00029378,2]
[311538135,1705201838458,-224.9303038,0.000295,30]
[311538137,1705201838467,-509.22464917,0.0002979,3]
[311538139,1705201838476,-6194.08886955,0.000298,2]
[311538141,1705201838485,-415.28574469,0.000299,2]
[311538143,1705201838494,-200.53,0.000299,4]
[311538145,1705201838503,-151.65771755,0.0002994,2]
[311538147,1705201838512,-2775.13,0.0002999,3]
[311538149,1705201838521,-2312.61,0.0002999,3]
[311538151,1705201838530,-219.19893537,0.00029998,2]
[311538153,1705201838538,-155.34727272,0.00029998,2]
[311538155,1705201838547,-216.8600227,0.00029998,2]
[311538157,1705201838557,-272.13904,0.00029999,2]
[311538159,1705201838566,-155.30519564,0.00029999,2]
[311538161,1705201838575,-3738.08353316,0.00029999,2]
[311538163,1705201838583,-1099.16924611,0.0003,7]
[311538165,1705201838592,-191468.21685032,0.0003,2]
[311538167,1705201838601,-2032.6063135,0.0003,3]
[311538169,1705201838610,-502.03551782,0.0003,2]
[311538171,1705201838619,-410.71787832,0.0003,2]
[311538173,1705201838627,-1028.26634123,0.0003,14]
[311538175,1705201838636,-155.14831659,0.0003,4]
[311538178,1705201838657,-155.2340082,0.0003,4]